{"text_format":"1","workbook":"xlsx","n_sheets":3,"sheets":["Seite 1","Seite 2","Seite 3"],"not_rendered":{"charts":0,"images":3,"macros":1,"external_links":0,"defined_names":9,"comments":1,"pivot_tables":0},"unopened":[],"bounds":{"document_bytes":16777216,"sheet_cells":100000,"rows_first":2000,"rows_last":500,"rows_between":2000,"halvings":0,"cell_chars":16384,"cell_head_chars":4096},"cells_cut":0,"cells_raw":0,"read":"whole","date_system":"1900"}

{"sheet":"Seite 1","index":0,"n_rows":77,"n_cols":17,"rows_kept":77,"cut":false,"hidden":false,"merged":[[0,0,0,14],[38,0,38,6],[64,12,64,13],[64,0,64,11],[69,0,69,1],[69,3,69,4],[70,0,70,1],[70,3,70,4],[67,5,70,14],[66,0,66,10],[67,0,67,1],[67,3,67,4],[68,0,68,1],[68,3,68,4],[61,0,61,6],[50,0,50,14],[54,0,54,14],[55,0,56,6],[47,7,47,9],[48,7,48,9],[49,7,49,9],[40,0,40,6],[42,0,42,6],[44,0,44,14],[24,0,24,14],[27,0,27,6],[25,0,25,6],[27,7,27,14],[1,0,1,14],[6,6,6,8],[4,9,4,11],[6,9,6,11],[4,6,4,8],[5,6,5,8],[2,9,2,11],[3,9,3,11],[6,4,6,5],[2,0,2,3],[3,0,5,3],[4,4,4,5],[2,4,2,5],[5,4,5,5],[3,4,3,5],[8,12,8,13],[10,4,10,6],[2,12,2,14],[5,9,5,11],[2,6,2,8],[3,6,3,8],[7,4,8,5],[7,9,7,10],[8,9,8,10],[7,6,7,7],[8,6,8,7],[3,12,3,14],[4,12,4,14],[5,12,5,14],[6,0,6,3],[6,12,6,14],[14,12,14,14],[15,12,15,14],[16,12,16,14],[14,7,14,11],[9,3,9,14],[10,0,10,3],[15,7,15,11],[16,7,16,11],[9,0,9,2],[10,7,10,11],[11,7,11,11],[12,7,12,11],[13,7,13,11],[10,12,10,14],[7,0,7,3],[8,0,8,3],[7,12,7,13],[60,0,60,6],[60,11,60,13],[60,7,60,9],[51,0,51,6],[46,0,49,6],[52,0,52,6],[52,7,52,14],[53,0,53,6],[53,7,53,14],[56,7,56,8],[56,9,56,10],[56,12,56,14],[46,7,46,9],[57,0,57,14],[58,0,58,14],[49,11,49,14],[26,0,26,6],[17,0,17,6],[11,0,16,6],[32,0,33,6],[30,0,30,6],[29,0,29,6],[28,0,28,14],[18,0,22,6],[59,0,59,6],[45,0,45,6],[30,7,30,14],[35,0,35,14],[36,0,36,6],[32,7,33,8],[32,9,33,9],[32,10,33,10],[32,11,33,11],[32,12,33,12],[32,13,33,13],[32,14,33,14],[31,0,31,14],[34,0,34,14],[17,7,17,14],[18,7,22,14]]}
["Fragebogen Lieferantenselbstauskunft"]
["Allgemeine Lieferantendaten (bitte die grauen Felder ausfüllen)"]
["Firmenbezeichnung:",null,null,null,"Zuständig:",null,"Vertrieb / Logistik",null,null,"Entwicklung /\nProjektleitung",null,null,"Qualität"]
[null,null,null,null,"Name:"]
[null,null,null,null,"Tel. Nr.:"]
[null,null,null,null,"Mobil Nr.:"]
[null,null,null,null,"Email:"]
["Das Unternehmen besteht seit:",null,null,null,"Sprachen:",null,"Deutsch",null,null,"Deutsch",null,null,"Deutsch"]
[null,null,null,null,null,null,"Englisch",null,null,"Englisch",null,null,"Englisch"]
["Internet-Homepage:   "]
["Anschrift Fertigungsstätte:",null,null,null,null,null,null,"Lieferanten-Nr. (intern):"]
[null,null,null,null,null,null,null,"D-U-N-S Nr.:"]
[null,null,null,null,null,null,null,"Umsatz p. A. (€) / davon im Automobilbereich:"]
[null,null,null,null,null,null,null,"Anzahl Mitarbeiter gesamt:"]
[null,null,null,null,null,null,null,"davon Mitarbeiter in der Verwaltung:"]
[null,null,null,null,null,null,null,"davon in der Produktion:"]
[null,null,null,null,null,null,null,"davon im Qualitätswesen:"]
["Welche Unternehmen zählen zu Ihren Stammkunden?",null,null,null,null,null,null,"Produkte / Leistungen:"]
[]
[]
[]
[]
[]
[]
["Sicherheiten (bitte die grauen Felder ankreuzen und ausfüllen)"]
["Verfügen Sie über eine Produkthaftpflichtversicherung?",null,null,null,null,null,null,null,"ja",null,"nein",null,null,{"$f":"IF(J26=\"x\",11,IF(L26=\"x\",3,-2))","v":-2},null,null,{"$f":"N26","v":-2}]
["Besteht eine erweiterte Produkthaftpflichtversicherung?",null,null,null,null,null,null,null,"ja",null,"nein",null,null,{"$f":"IF(J27=\"x\",11,IF(L27=\"x\",3,-2))","v":-2}]
["Deckungssumme:"]
[]
["Verfügen Sie über eine Rückrufversicherung?",null,null,null,null,null,null,null,"ja",null,"nein",null,null,{"$f":"IF(J30=\"x\",11,IF(L30=\"x\",3,-2))","v":-2},null,null,{"$f":"N30","v":-2}]
["Deckungssumme:"]
[]
["Gibt es im Unternehmen einen Notfallplan?\n(Wenn ja, als Anlage zusenden)",null,null,null,null,null,null,"ja",null,null,"nein",null,null,{"$f":"IF(J33=\"x\",11,IF(L33=\"x\",3,-2))","v":-2},null,null,{"$f":"N33","v":-2}]
[]
[]
["Entwicklung / Werkzeugbau / Instandhaltung  (bitte die grauen Felder ankreuzen)"]
["Entwickeln Sie eigene Produkte?",null,null,null,null,null,null,null,"ja",null,"nein",null,null,{"$f":"IF(J37=\"x\",11,IF(L37=\"x\",3,-2))","v":-2},null,null,{"$f":"N37","v":-2}]
[]
["Verfügen Sie über ein Änderungsmanagement ?",null,null,null,null,null,null,null,"ja",null,"nein",null,null,{"$f":"IF(J39=\"x\",11,IF(L39=\"x\",3,-2))","v":-2},null,null,{"$f":"N39","v":-2}]
[]
["Verfügen Sie über einen Werkzeug- / Betriebsmittelbau?",null,null,null,null,null,null,null,"ja",null,"nein",null,null,{"$f":"IF(J41=\"x\",11,IF(L41=\"x\",3,-2))","v":-2},null,null,{"$f":"N41","v":-2}]
[]
["Verfügen Sie über eine eigene Instandhaltungsabteilung?",null,null,null,null,null,null,null,"ja",null,"nein",null,null,{"$f":"IF(J43=\"x\",11,IF(L43=\"x\",3,-2))","v":-2},null,null,{"$f":"N43","v":-2}]
[]
["Qualitätsmanagementsystem (bitte die grauen Felder ankreuzen und ausfüllen)"]
["Verfügen Sie über ein dokumentiertes QM-System?",null,null,null,null,null,null,null,"ja",null,"nein",null,null,{"$f":"IF(J46=\"x\",11,IF(L46=\"x\",3,-2))","v":-2},null,null,{"$f":"N46","v":-2}]
["Wenn ja, ist dieses zertifiziert nach:\n(als Anlage zusenden)",null,null,null,null,null,null,"DIN EN ISO 9001"]
[null,null,null,null,null,null,null,"ISO TS / IATF 16949"]
[null,null,null,null,null,null,null,"VDA 6.1"]
[null,null,null,null,null,null,null,"anderes"]
[]
["Wurden Sie bereits nach einer Norm auditiert?\n(z.B. VDA 6.1, DIN EN ISO 9001, ISO TS / IATF 16949)",null,null,null,null,null,null,null,"ja",null,"nein",null,null,{"$f":"IF(J52=\"x\",11,IF(L52=\"x\",3,-2))","v":-2},null,null,{"$f":"N52","v":-2}]
["Wenn ja, durch wen:"]
["Ergebnis / Einstufung:"]
[]
["Wenn nicht zertifiziert, ist eine Zertifizierung geplant?\nWenn hier mit nein geantwortet wird, Seite 2 auch ausfüllen!",null,null,null,null,null,null,null,"ja",null,"nein",null,null,{"$f":"IF(J56=\"x\",11,IF(L56=\"x\",3,-2))","v":-2},null,null,{"$f":"N56","v":-2}]
[null,null,null,null,null,null,null,"Termin:",null,null,null,"Norm:"]
[]
["Sonstiges  (bitte die grauen Felder ankreuzen)"]
["Sind Sie Lieferant der Automobilindustrie?",null,null,null,null,null,null,null,"ja",null,"nein",null,null,{"$f":"IF(J60=\"x\",11,IF(L60=\"x\",3,-2))","v":-2},null,null,{"$f":"N60","v":-2}]
["Wenn ja:",null,null,null,null,null,null,"Direktzulieferer:",null,null,null,"Zweitzulieferer:"]
["Sind Ihnen die entsprechenden VDA-Bände bzw. Normen und Handbücher zum Qualitätsmanagement bekannt?",null,null,null,null,null,null,null,"ja",null,"nein",null,null,{"$f":"IF(J62=\"x\",11,IF(L62=\"x\",3,-2))","v":-2},null,null,{"$f":"N62","v":-2}]
[]
[]
["Ergebnis der oben aufgeführten 12 Fragen:",null,null,null,null,null,null,null,null,null,null,null,{"$f":"SUM(Q26:Q62)","v":-24}]
[]
["Bewertung der Fragen erfolgt automatisch, gemäß unten angegebenen Kriterien."]
["Punkte:",null,null,"in Prozent",null,"Die Gesamtbewertung erfolgt \nauf Seite 3 durch Fa. Dömer."]
["143 - 117",null,319,"100% - 80%"]
["116 - 90",null,270,"79% - 60%"]
["89 - 0",null,182,"59 - 0%"]
[]
["Bewertung der Einzelfragen:"]
["Punkte:"]
[11,319]
[3,270]
[-2,182]

{"sheet":"Seite 2","index":1,"n_rows":53,"n_cols":18,"rows_kept":53,"cut":false,"hidden":false,"merged":[[0,0,0,15],[1,0,1,15],[43,5,46,15],[30,1,30,9],[31,0,31,15],[23,1,23,9],[24,1,24,9],[25,1,25,9],[22,1,22,9],[17,1,17,9],[18,1,18,9],[7,1,7,9],[8,1,8,9],[9,1,9,9],[10,1,10,9],[2,1,2,9],[3,1,3,9],[4,1,4,9],[5,1,5,9],[6,1,6,9],[32,0,38,15],[40,11,40,15],[11,1,11,9],[12,1,12,9],[13,1,13,9],[14,1,14,9],[15,1,15,9],[16,1,16,9],[26,1,26,9],[27,1,27,9],[28,1,28,9],[29,1,29,9],[19,1,19,9],[20,1,20,9],[21,1,21,9],[40,0,40,10],[43,3,43,4],[44,0,44,1],[45,0,45,1],[42,0,42,10],[46,0,46,1],[44,3,44,4],[45,3,45,4],[46,3,46,4],[43,0,43,1]]}
["Fragebogen Lieferantenselbstauskunft"]
["Fragen zum Status des QM-Systems (bitte die grauen Felder ankreuzen)"]
[1,"Überprüfen Sie regelmäßig Ihr QM-System?",null,null,null,null,null,null,null,null,"ja",{"$f":"M3","v":""},{"$f":"IF('Seite 1'!$J$56=\"x\",\"x\",\"\")","v":""},"nein",null,{"$f":"IF(L3=\"x\",11,IF(O3=\"x\",3,-2))","v":-2},null,{"$f":"P3","v":-2}]
[2,"Werden Aufzeichnungen geführt über Qualitätssicherungsaktivitäten?",null,null,null,null,null,null,null,null,"ja",{"$f":"M4","v":""},{"$f":"IF('Seite 1'!$J$56=\"x\",\"x\",\"\")","v":""},"nein",null,-2,null,{"$f":"P4","v":-2}]
[3,"Werden diese Aufzeichnungen für festgelegte Zeitspannen aufbewahrt?",null,null,null,null,null,null,null,null,"ja","",{"$f":"IF('Seite 1'!$J$56=\"x\",\"x\",\"\")","v":""},"nein",null,-2,null,-2]
[4,"Stellen Sie eine ausreichende Aus- und Weiterbildung Ihrer Mitarbeiter sicher (Schulung)?",null,null,null,null,null,null,null,null,"ja","",{"$f":"IF('Seite 1'!$J$56=\"x\",\"x\",\"\")","v":""},"nein",null,-2,null,-2]
[5,"Prüfen Sie vorab die DÖMER - Anfragen bzw. Auftragsunterlagen auf Vollständigkeit und Erfüllbarkeit?",null,null,null,null,null,null,null,null,"ja","",{"$f":"IF('Seite 1'!$J$56=\"x\",\"x\",\"\")","v":""},"nein",null,-2,null,-2]
[6,"Gibt es ein System zur Auswahl und Bewertung von Unterlieferanten?",null,null,null,null,null,null,null,null,"ja","",{"$f":"IF('Seite 1'!$J$56=\"x\",\"x\",\"\")","v":""},"nein",null,-2,null,-2]
[7,"Werden an zugekauften Produkten Eingangsprüfungen durchgeführt?",null,null,null,null,null,null,null,null,"ja","",{"$f":"IF('Seite 1'!$J$56=\"x\",\"x\",\"\")","v":""},"nein",null,-2,null,-2]
[8,"Wird eine Projektplanung für Produkte und Prozesse durchgeführt?",null,null,null,null,null,null,null,null,"ja","",{"$f":"IF('Seite 1'!$J$56=\"x\",\"x\",\"\")","v":""},"nein",null,-2,null,-2]
[9,"Ist eine Qualitätsvorausplanung (QVP) Bestandteil der Projektplanung?",null,null,null,null,null,null,null,null,"ja","",{"$f":"IF('Seite 1'!$J$56=\"x\",\"x\",\"\")","v":""},"nein",null,-2,null,-2]
[10,"Führen Sie Fehler-Möglichkeit-und-Einfluß-Analysen (FMEA) durch?",null,null,null,null,null,null,null,null,"ja","",{"$f":"IF('Seite 1'!$J$56=\"x\",\"x\",\"\")","v":""},"nein",null,-2,null,-2]
[11,"Führen Sie Fähigkeitsuntersuchungen an Maschinen und Prozessen durch?",null,null,null,null,null,null,null,null,"ja","",{"$f":"IF('Seite 1'!$J$56=\"x\",\"x\",\"\")","v":""},"nein",null,-2,null,-2]
[12,"Führen Sie Erstmusterprüfungen durch?",null,null,null,null,null,null,null,null,"ja","",{"$f":"IF('Seite 1'!$J$56=\"x\",\"x\",\"\")","v":""},"nein",null,-2,null,-2]
[13,"Gibt es Verfahren zur Freigabe der Fertigung bei Erstanläufen bzw. \nWiederauflagen?",null,null,null,null,null,null,null,null,"ja","",{"$f":"IF('Seite 1'!$J$56=\"x\",\"x\",\"\")","v":""},"nein",null,-2,null,-2]
[14,"Werden Prozessparameter ermittelt und überwacht?",null,null,null,null,null,null,null,null,"ja","",{"$f":"IF('Seite 1'!$J$56=\"x\",\"x\",\"\")","v":""},"nein",null,-2,null,-2]
[15,"Werden für alle Fertigungseinrichtungen vorbeugend Instandhaltungen \ndurchgeführt?",null,null,null,null,null,null,null,null,"ja","",{"$f":"IF('Seite 1'!$J$56=\"x\",\"x\",\"\")","v":""},"nein",null,-2,null,-2]
[16,"Werden Zwischenprüfungen am Produkt durchgeführt?",null,null,null,null,null,null,null,null,"ja","",{"$f":"IF('Seite 1'!$J$56=\"x\",\"x\",\"\")","v":""},"nein",null,-2,null,-2]
[17,"Führen Sie Werkerselbstprüfungen durch?",null,null,null,null,null,null,null,null,"ja","",{"$f":"IF('Seite 1'!$J$56=\"x\",\"x\",\"\")","v":""},"nein",null,-2,null,-2]
[18,"Wenden Sie die Statistische-Prozess-Regelung (SPC) an?",null,null,null,null,null,null,null,null,"ja","",{"$f":"IF('Seite 1'!$J$56=\"x\",\"x\",\"\")","v":""},"nein",null,-2,null,-2]
[19,"Verfügen Sie über entsprechende Prüfmittel (Mess-/ Lehrmittel)?",null,null,null,null,null,null,null,null,"ja","",{"$f":"IF('Seite 1'!$J$56=\"x\",\"x\",\"\")","v":""},"nein",null,-2,null,-2]
[20,"Werden Ihre Prüfmittel regelmäßig kalibriert?",null,null,null,null,null,null,null,null,"ja","",{"$f":"IF('Seite 1'!$J$56=\"x\",\"x\",\"\")","v":""},"nein",null,-2,null,-2]
[21,"Werden fehlerhafte Produkte entsprechend gekennzeichnet und gelagert?",null,null,null,null,null,null,null,null,"ja","",{"$f":"IF('Seite 1'!$J$56=\"x\",\"x\",\"\")","v":""},"nein",null,-2,null,-2]
[22,"Werden für fehlerhafte Produkte die Fehlerursachen ermittelt, Korrekturmaßnahmen eingeleitet und auf ihre Wirksamkeit überprüft?",null,null,null,null,null,null,null,null,"ja","",{"$f":"IF('Seite 1'!$J$56=\"x\",\"x\",\"\")","v":""},"nein",null,-2,null,-2]
[23,"Werden Produkte und Materialien entsprechend gekennzeichnet?",null,null,null,null,null,null,null,null,"ja","",{"$f":"IF('Seite 1'!$J$56=\"x\",\"x\",\"\")","v":""},"nein",null,-2,null,-2]
[24,"Führen Sie Warenausgangsprüfungen (Endprüfungen) durch?",null,null,null,null,null,null,null,null,"ja","",{"$f":"IF('Seite 1'!$J$56=\"x\",\"x\",\"\")","v":""},"nein",null,-2,null,-2]
[25,"Ist die Verpackung, Kennzeichnung, Lagerung und der Transport\nvon Produkten geregelt?",null,null,null,null,null,null,null,null,"ja","",{"$f":"IF('Seite 1'!$J$56=\"x\",\"x\",\"\")","v":""},"nein",null,-2,null,-2]
[26,"Fügen Sie Ihren Lieferungen aussagekräftige Begleitpapiere (z.B. Lieferschein) bei?",null,null,null,null,null,null,null,null,"ja","",{"$f":"IF('Seite 1'!$J$56=\"x\",\"x\",\"\")","v":""},"nein",null,-2,null,-2]
[27,"Gibt es Regelungen zur Vorgehensweise bei Kundenreklamationen?",null,null,null,null,null,null,null,null,"ja","",{"$f":"IF('Seite 1'!$J$56=\"x\",\"x\",\"\")","v":""},"nein",null,-2,null,-2]
[28,"Liegt Ihnen die DÖMER \"Qualitätssicherungsvereinbarung\" vor?",null,null,null,null,null,null,null,null,"ja","",{"$f":"IF('Seite 1'!$J$56=\"x\",\"x\",\"\")","v":""},"nein",null,-2,null,-2]
[29,"Wenn ja, sind Sie nach eigener Einschätzung in der Lage, diese Richtlinie zu erfüllen?",null,null,null,null,null,null,null,null,"ja","",{"$f":"IF('Seite 1'!$J$56=\"x\",\"x\",\"\")","v":""},"nein",null,-2,null,-2]
["Bemerkungen des Lieferanten (im grauen Feld ausfüllen)"]
[null,null,null,null,null,null,null,null,null,null,null,null,null,null,null,null,null,{"$f":"SUM(R3:R31)","v":-58}]
[]
[]
[]
[]
[]
[]
[]
["Ergebnis der Fragen 1-29:",null,null,null,null,null,null,null,null,null,null,{"$f":"SUM(R3:R31)","v":-58}]
[]
["Bewertung der Fragen erfolgt automatisch, gemäß unten angegebenen Kriterien."]
["Punkte:",null,null,"in Prozent",null,"Die Gesamtbewertung erfolgt \nauf Seite 3 durch Fa. Dömer."]
["319 - 271",null,319,"100% - 80%"]
["270 - 183",null,270,"79% - 60%"]
["182 - 0",null,182,"59% - 0%"]
[]
["Bewertung der Einzelfragen:"]
["Punkte:"]
[11,319]
[3,270]
[-2,182]

{"sheet":"Seite 3","index":2,"n_rows":47,"n_cols":17,"rows_kept":47,"cut":false,"hidden":false,"merged":[[0,0,0,14],[10,10,11,14],[12,0,12,14],[13,0,13,14],[46,8,46,9],[39,8,42,14],[44,8,44,9],[46,0,46,1],[46,2,46,5],[23,0,23,4],[23,5,23,9],[14,5,14,14],[15,5,15,14],[16,5,16,14],[17,5,17,14],[6,10,7,14],[2,10,3,14],[2,0,3,9],[18,0,18,14],[44,0,44,1],[44,2,44,5],[39,0,39,6],[40,0,42,6],[24,0,24,14],[20,0,20,4],[20,5,20,9],[21,0,21,4],[21,5,21,9],[25,0,25,14],[22,0,22,4],[22,5,22,9],[1,0,1,14],[19,0,19,14],[17,0,17,1],[17,3,17,4],[15,0,15,1],[15,3,15,4],[16,0,16,1],[16,3,16,4],[14,0,14,1],[14,3,14,4],[8,0,8,14],[9,0,9,14],[10,0,11,9],[4,0,4,14],[5,0,5,14],[6,0,7,9]]}
["Fragebogen Lieferantenselbstauskunft"]
["Ergebnis Seite 1",null,null,null,null,null,null,null,null,null,null,null,null,null,null,null,{"$f":"O2","v":0}]
["Ergebnis der 12 Fragen:",null,null,null,null,null,null,null,null,null,{"$f":"SUM('Seite 1'!Q26:Q62)","v":-24},null,null,null,null,null,{"$f":"O3","v":0}]
[null,null,null,null,null,null,null,null,null,null,null,null,null,null,null,null,{"$f":"O4","v":0}]
[null,null,null,null,null,null,null,null,null,null,null,null,null,null,null,null,{"$f":"O5","v":0}]
["Ergebnis Seite 2",null,null,null,null,null,null,null,null,null,null,null,null,null,null,null,{"$f":"O6","v":0}]
["Ergebnis der Fragen 1-29:",null,null,null,null,null,null,null,null,null,{"$f":"SUM('Seite 2'!R3:R31)","v":-58}]
[null,null,null,null,null,null,null,null,null,null,null,null,null,null,null,null,{"$f":"O8","v":0}]
[null,null,null,null,null,null,null,null,null,null,null,null,null,null,null,null,0]
["Gesamtergebnis",null,null,null,null,null,null,null,null,null,null,null,null,null,null,null,0]
["Gesamtergebnis von Seite 1 und 2:",null,null,null,null,null,null,null,null,null,{"$f":"SUM(K7,K3)","v":-82},null,null,null,null,null,0]
[null,null,null,null,null,null,null,null,null,null,null,null,null,null,null,null,0]
[null,null,null,null,null,null,null,null,null,null,null,null,null,null,null,null,0]
["Gesamtbewertung der Fragen erfolgt automatisch,\ngemäß unten angegebenen Kriterien."]
["Punkte:",null,null,"in Prozent",null,"Bemerkung für weiteres vorgehen:"]
["462 - 372",null,319,"100% - 80%",null,"keine Maßnahmen erforderlich"]
["371 - 282",null,270,"79% - 60%",null,"Maßnahmenplan zur Verbesserung durch Lieferanten vorl."]
["281 - 0",null,182,"59% - 0%",null,"weiteres Vorgehen mit Dömer besprechen, vorerst keine Freigabe"]
[null,null,null,null,null,null,null,null,null,null,null,null,null,null,null,null,{"$f":"O19","v":0}]
["Entscheidung durch Fa. Dömer",null,null,null,null,null,null,null,null,null,null,null,null,null,null,null,0]
["Bewertung durch Qualität:",null,null,null,null,"Lieferant freigegeben?",null,null,null,null,"ja",null,"nein",null,null,null,0]
["Bewertung durch Einkauf:",null,null,null,null,"Lieferant freigegeben?",null,null,null,null,"ja",null,"nein",null,null,null,0]
["Bewertung durch Technische Leitung:",null,null,null,null,"Lieferant freigegeben?",null,null,null,null,"ja",null,"nein",null,null,null,0]
["Bewertung durch Logistik:",null,null,null,null,"Lieferant freigegeben?",null,null,null,null,"ja",null,"nein",null,null,null,0]
[null,null,null,null,null,null,null,null,null,null,null,null,null,null,null,null,0]
["Bemerkungen durch Fa. Dömer"]
[null,null,null,null,null,null,null,null,null,null,null,null,null,null,null,null,{"$f":"SUM(Q2:Q25)","v":0}]
[]
[]
[]
[]
[]
[]
[]
[]
[]
[]
[]
[]
["Lieferant:",null,null,null,null,null,null,null,"Dömer GmbH\nAn der Karlshütte\n57368 Lennestadt-Langenei"]
[{"$f":"'Seite 1'!A4","v":0}]
[]
[]
[]
["Datum:",null,null,null,null,null,null,null,"Datum:"]
[]
["Unterschrift:",null,null,null,null,null,null,null,"Unterschrift:"]